Workbook

Sheet Sheet1
A1: 附 件
A3: 就业向未来 建功新时代——贵州省农村信用社2023年公开招聘（普通岗位）资格复审人员名单
A4: 序号 | B4: 招聘单位 | C4: 姓名 | D4: 准考证号 | E4: 性别 | F4: 报考职位 | G4: 笔试卷面分数 （原始成绩） | H4: 笔试成绩 （百分制） | I4: 笔试成绩排名 | J4: 是否进入资格复审 | K4: 资格复审地址 | L4: 联系人 | M4: 联系方式 | N4: 备注
A5: 1 | B5: 省联社 | C5: 付晗 | D5: 20231501029 | E5: 男 | F5: 系统管理、软件开发岗 | G5: 90.60 | H5: =ROUND(G5*100/150,2) -> 60.40 | I5: 1 | J5: 是 | K5: 贵州省贵阳市观山湖区长岭北路51号金融城8号贵州农信大楼910室 | L5: 刘鑫 李衍洋 | M5: 15120315671 18508539066
A6: 2 | C6: 张埙 | D6: 20231507005 | E6: 男 | F6: 系统管理、软件开发岗 | G6: 88.60 | H6: =ROUND(G6*100/150,2) -> 59.07 | I6: 2 | J6: 是
A7: 3 | C7: 杨见辉 | D7: 20231504054 | E7: 男 | F7: 系统管理、软件开发岗 | G7: 82.20 | H7: 54.80 | I7: 3 | J7: 是
A8: 4 | C8: 蒋涛涛 | D8: 20231502011 | E8: 男 | F8: 系统管理、软件开发岗 | G8: 82.00 | H8: 54.67 | I8: 4 | J8: 是
A9: 5 | C9: 刘一军 | D9: 20231505036 | E9: 男 | F9: 系统管理、软件开发岗 | G9: 81.90 | H9: 54.60 | I9: 5 | J9: 是
A10: 6 | C10: 邢瑞波 | D10: 20231506056 | E10: 男 | F10: 系统管理、软件开发岗 | G10: 80.30 | H10: 53.53 | I10: 6 | J10: 是
A11: 7 | C11: 李镓旭 | D11: 20231502042 | E11: 男 | F11: 系统管理、软件开发岗 | G11: 80.10 | H11: 53.40 | I11: 7 | J11: 是
A12: 8 | C12: 袁一昆 | D12: 20231506042 | E12: 男 | F12: 系统管理、软件开发岗 | G12: 79.50 | H12: 53.00 | I12: 8 | J12: 是
A13: 9 | C13: 胡晗 | D13: 20231505021 | E13: 男 | F13: 系统管理、软件开发岗 | G13: 78.80 | H13: 52.53 | I13: 9 | J13: 是
A14: 10 | C14: 夏磊 | D14: 20231506038 | E14: 男 | F14: 系统管理、软件开发岗 | G14: 78.40 | H14: 52.27 | I14: 10 | J14: 是
A15: 11 | C15: 何林 | D15: 20231505025 | E15: 男 | F15: 系统管理、软件开发岗 | G15: 77.60 | H15: 51.73 | I15: 11 | J15: 是
A16: 12 | C16: 彭啟文 | D16: 20231508006 | E16: 男 | F16: 系统管理、软件开发岗 | G16: 77.20 | H16: 51.47 | I16: 12 | J16: 是
A17: 13 | C17: 罗兰 | D17: 20231503068 | E17: 女 | F17: 系统管理、软件开发岗 | G17: 76.90 | H17: 51.27 | I17: 13 | J17: 是
A18: 14 | C18: 杨贵东 | D18: 20231509016 | E18: 男 | F18: 系统管理、软件开发岗 | G18: 76.50 | H18: 51.00 | I18: 14 | J18: 是
A19: 15 | C19: 罗隐 | D19: 20231502012 | E19: 女 | F19: 系统管理、软件开发岗 | G19: 76.00 | H19: 50.67 | I19: 15 | J19: 是
A20: 16 | C20: 吴经纬 | D20: 20231501012 | E20: 女 | F20: 系统管理、软件开发岗 | G20: 76.00 | H20: 50.67 | I20: 15 | J20: 是
A21: 17 | C21: 陈娜 | D21: 20231505004 | E21: 女 | F21: 系统管理、软件开发岗 | G21: 75.30 | H21: 50.20 | I21: 17 | J21: 是
A22: 18 | C22: 赵青青 | D22: 20231501074 | E22: 女 | F22: 系统管理、软件开发岗 | G22: 75.20 | H22: 50.13 | I22: 18 | J22: 是
A23: 19 | C23: 李俊毫 | D23: 20231508010 | E23: 男 | F23: 系统管理、软件开发岗 | G23: 74.90 | H23: 49.93 | I23: 19 | J23: 是
A24: 20 | C24: 郭士永 | D24: 20231504021 | E24: 男 | F24: 系统管理、软件开发岗 | G24: 74.30 | H24: 49.53 | I24: 20 | J24: 是
A25: 21 | C25: 龙宛青 | D25: 20231502091 | E25: 男 | F25: 系统管理、软件开发岗 | G25: 74.20 | H25: 49.47 | I25: 21 | J25: 是
A26: 22 | C26: 蒋冬生 | D26: 20231501031 | E26: 男 | F26: 系统管理、软件开发岗 | G26: 74.00 | H26: 49.33 | I26: 22 | J26: 是
A27: 23 | C27: 吕俊杰 | D27: 20231506053 | E27: 男 | F27: 系统管理、软件开发岗 | G27: 73.60 | H27: 49.07 | I27: 23 | J27: 是
A28: 24 | C28: 刘倡 | D28: 20231503016 | E28: 男 | F28: 系统管理、软件开发岗 | G28: 72.70 | H28: 48.47 | I28: 24 | J28: 是
A29: 25 | C29: 陈泓霖 | D29: 20231509030 | E29: 男 | F29: 系统管理、软件开发岗 | G29: 72.70 | H29: 48.47 | I29: 24 | J29: 是
A30: 26 | C30: 王义 | D30: 20231509012 | E30: 男 | F30: 系统管理、软件开发岗 | G30: 72.10 | H30: 48.07 | I30: 26 | J30: 是
A31: 27 | C31: 张武 | D31: 20231502026 | E31: 男 | F31: 系统管理、软件开发岗 | G31: 72.00 | H31: 48.00 | I31: 27 | J31: 是
A32: 28 | C32: 王发亮 | D32: 20231501020 | E32: 男 | F32: 系统管理、软件开发岗 | G32: 71.90 | H32: 47.93 | I32: 28 | J32: 是
A33: 29 | C33: 曾瑜枫 | D33: 20231501062 | E33: 男 | F33: 系统管理、软件开发岗 | G33: 71.50 | H33: 47.67 | I33: 29 | J33: 是
A34: 30 | C34: 陶启明 | D34: 20231503045 | E34: 男 | F34: 系统管理、软件开发岗 | G34: 70.70 | H34: 47.13 | I34: 30 | J34: 是
A35: 31 | B35: 花溪农商银行 | C35: 谭如珺 | D35: 20231107020 | E35: 女 | F35: 客户经理02 | G35: 85.30 | H35: 56.87 | I35: 1 | J35: 是 | K35: 贵阳市花溪区明珠大道与清溪路交叉口花溪农商银行综合办公大楼 | L35: 龙沛伊 | M35: 0851-83858752
A36: 32 | C36: 肖海莺 | D36: 20231117039 | E36: 女 | F36: 客户经理02 | G36: 84.80 | H36: 56.53 | I36: 2 | J36: 是
A37: 33 | C37: 胡淼 | D37: 20231102066 | E37: 女 | F37: 客户经理02 | G37: 83.80 | H37: 55.87 | I37: 3 | J37: 是
A38: 34 | C38: 黎雨洁 | D38: 20231101027 | E38: 女 | F38: 客户经理02 | G38: 80.10 | H38: 53.40 | I38: 4 | J38: 是
A39: 35 | C39: 彭雪峰 | D39: 20231111047 | E39: 男 | F39: 客户经理02 | G39: 72.70 | H39: 48.47 | I39: 5 | J39: 是
A40: 36 | C40: 牟兰 | D40: 20231104055 | E40: 女 | F40: 客户经理02 | G40: 69.80 | H40: 46.53 | I40: 6 | J40: 是
A41: 37 | B41: 清镇农商银行 | C41: 黄涛烜 | D41: 20231107072 | E41: 男 | F41: 综合柜员岗01 | G41: 96.1 | H41: 64.07 | I41: 1 | J41: 是 | K41: 贵州省贵阳市清镇市云岭东路43号2楼党员活动室 | L41: 阮嘉佳 | M41: 0851-82518929
A42: 38 | C42: 冉进伟 | D42: 20231101053 | E42: 男 | F42: 综合柜员岗01 | G42: 86.6 | H42: 57.73 | I42: 2 | J42: 是
A43: 39 | C43: 吴欣灿 | D43: 20231110028 | E43: 男 | F43: 综合柜员岗01 | G43: 81.8 | H43: 54.53 | I43: 3 | J43: 是
A44: 40 | C44: 赵渝 | D44: 20231113010 | E44: 女 | F44: 综合柜员岗02 | G44: 91.50 | H44: 61.00 | I44: 1 | J44: 是
A45: 41 | C45: 杨恒 | D45: 20231102004 | E45: 男 | F45: 综合柜员岗02 | G45: 91.10 | H45: 60.73 | I45: 2 | J45: 是
A46: 42 | C46: 王蓉 | D46: 20231102007 | E46: 女 | F46: 综合柜员岗02 | G46: 90.40 | H46: 60.27 | I46: 3 | J46: 是
A47: 43 | C47: 罗霞霞 | D47: 20231102062 | E47: 女 | F47: 综合柜员岗02 | G47: 90.20 | H47: 60.13 | I47: 4 | J47: 是
A48: 44 | C48: 杜欧州 | D48: 20231110027 | E48: 男 | F48: 综合柜员岗02 | G48: 88.20 | H48: 58.80 | I48: 5 | J48: 是
A49: 45 | C49: 付宇钊 | D49: 20231114007 | E49: 男 | F49: 综合柜员岗02 | G49: 86.10 | H49: 57.40 | I49: 6 | J49: 是
A50: 46 | B50: 开阳农信联社 | C50: 熊凯嘉 | D50: 20233408046 | E50: 女 | F50: 柜员、客户经理01 | G50: 79.10 | H50: 52.73 | I50: 1 | J50: 是 | K50: 开阳县城关镇磷都大道信用社总社 | L50: 蔡晓娜 | M50: 18685185520
A51: 47 | C51: 米雅洁 | D51: 20233409084 | E51: 女 | F51: 柜员、客户经理01 | G51: 77.60 | H51: 51.73 | I51: 2 | J51: 是
A52: 48 | C52: 李锦峰 | D52: 20233409060 | E52: 男 | F52: 柜员、客户经理01 | G52: 76.60 | H52: 51.07 | I52: 3 | J52: 是
A53: 49 | C53: 王颖 | D53: 20233806041 | E53: 女 | F53: 柜员、客户经理02 | G53: 83.60 | H53: 55.73 | I53: 1 | J53: 是
A54: 50 | C54: 田攀 | D54: 20233807044 | E54: 女 | F54: 柜员、客户经理02 | G54: 83.50 | H54: 55.67 | I54: 2 | J54: 是
A55: 51 | C55: 徐进 | D55: 20233810028 | E55: 女 | F55: 柜员、客户经理02 | G55: 83.20 | H55: 55.47 | I55: 3 | J55: 是
A56: 52 | C56: 罗朝美 | D56: 20233811050 | E56: 女 | F56: 柜员、客户经理02 | G56: 83.10 | H56: 55.40 | I56: 4 | J56: 是
A57: 53 | C57: 曾令康 | D57: 20233404063 | E57: 男 | F57: 柜员、客户经理02 | G57: 82.90 | H57: 55.27 | I57: 5 | J57: 是
A58: 54 | C58: 杨秋钰 | D58: 20233401010 | E58: 男 | F58: 柜员、客户经理02 | G58: 82.90 | H58: 55.27 | I58: 5 | J58: 是
A59: 55 | B59: 遵义农商银行 | C59: 陈秋红 | D59: 20231827055 | E59: 女 | F59: 综合柜员岗01 | G59: 88.60 | H59: 59.07 | I59: 1 | J59: 是 | K59: 贵州省遵义市播州区桂花桥街道花园路113号（信合大楼）人力资源部702室 | L59: 谭彬,冉庆利 | M59: 0851-27255778 13984517860 13765249678
A60: 56 | C60: 陈铸 | D60: 20231825001 | E60: 男 | F60: 综合柜员岗01 | G60: 87.90 | H60: 58.60 | I60: 2 | J60: 是
A61: 57 | C61: 邓椅 | D61: 20231801017 | E61: 男 | F61: 综合柜员岗01 | G61: 84.90 | H61: 56.60 | I61: 3 | J61: 是
A62: 58 | C62: 卢垿男 | D62: 20231823002 | E62: 男 | F62: 综合柜员岗01 | G62: 83.90 | H62: 55.93 | I62: 4 | J62: 是
A63: 59 | C63: 卢七一 | D63: 20231827015 | E63: 男 | F63: 综合柜员岗01 | G63: 83.30 | H63: 55.53 | I63: 5 | J63: 是
A64: 60 | C64: 申鑫 | D64: 20231827013 | E64: 男 | F64: 综合柜员岗01 | G64: 82.10 | H64: 54.73 | I64: 6 | J64: 是
A65: 61 | C65: 邓惠文 | D65: 20231830007 | E65: 女 | F65: 综合柜员岗01 | G65: 81.10 | H65: 54.07 | I65: 7 | J65: 是
A66: 62 | C66: 简韩韩 | D66: 20231807003 | E66: 女 | F66: 综合柜员岗01 | G66: 80.70 | H66: 53.80 | I66: 8 | J66: 是
A67: 63 | C67: 周琪琪 | D67: 20231829036 | E67: 女 | F67: 综合柜员岗01 | G67: 80.30 | H67: 53.53 | I67: 9 | J67: 是
A68: 64 | C68: 赵莎 | D68: 20231810031 | E68: 女 | F68: 综合柜员岗02 | G68: 93.60 | H68: 62.40 | I68: 1 | J68: 是
A69: 65 | C69: 舒长涛 | D69: 20231824033 | E69: 男 | F69: 综合柜员岗02 | G69: 90.70 | H69: 60.47 | I69: 2 | J69: 是
A70: 66 | C70: 杨宗霖 | D70: 20231824013 | E70: 男 | F70: 综合柜员岗02 | G70: 88.40 | H70: =ROUND(G70*100/150,2) -> 58.93 | I70: 3 | J70: 是
A71: 67 | C71: 冯迪 | D71: 20231831095 | E71: 男 | F71: 综合柜员岗02 | G71: 85.50 | H71: 57.00 | I71: 4 | J71: 是
A72: 68 | C72: 万灵钰 | D72: 20231802044 | E72: 女 | F72: 综合柜员岗02 | G72: 85.40 | H72: 56.93 | I72: 5 | J72: 是
A73: 69 | C73: 牟昀 | D73: 20231823030 | E73: 女 | F73: 综合柜员岗02 | G73: 84.50 | H73: 56.33 | I73: 6 | J73: 是
A74: 70 | C74: 王鑫鑫 | D74: 20231820006 | E74: 女 | F74: 综合柜员岗02 | G74: 84.10 | H74: 56.07 | I74: 7 | J74: 是
A75: 71 | C75: 韦长天 | D75: 20231822029 | E75: 男 | F75: 综合柜员岗02 | G75: 83.60 | H75: 55.73 | I75: 8 | J75: 是
A76: 72 | C76: 刘旺 | D76: 20231803042 | E76: 男 | F76: 综合柜员岗02 | G76: 82.90 | H76: 55.27 | I76: 9 | J76: 是
A77: 73 | C77: 王兰 | D77: 20231810032 | E77: 女 | F77: 综合柜员岗02 | G77: 81.70 | H77: 54.47 | I77: 10 | J77: 是
A78: 74 | C78: 谢浩楠 | D78: 20231832070 | E78: 男 | F78: 综合柜员岗02 | G78: 81.00 | H78: 54.00 | I78: 11 | J78: 是
A79: 75 | C79: 周炫 | D79: 20231806049 | E79: 女 | F79: 综合柜员岗02 | G79: 80.60 | H79: 53.73 | I79: 12 | J79: 是
A80: 76 | C80: 陈勇方 | D80: 20231829053 | E80: 男 | F80: 综合柜员岗02 | G80: 80.60 | H80: 53.73 | I80: 12 | J80: 是
A81: 77 | B81: 红花岗农商银行 | C81: 卢俊涛 | D81: 20231807008 | E81: 男 | F81: 柜员、客户经理岗 | G81: 100.80 | H81: 67.20 | I81: 1 | J81: 是 | K81: 遵义市汇川区北海路98号红花岗农商银行1006室 | L81: 韦老师 | M81: 28823278
A82: 78 | C82: 田朋 | D82: 20231829039 | E82: 男 | F82: 柜员、客户经理岗 | G82: 95.10 | H82: 63.40 | I82: 2 | J82: 是
A83: 79 | C83: 付豪威 | D83: 20231814040 | E83: 男 | F83: 柜员、客户经理岗 | G83: 94.70 | H83: 63.13 | I83: 3 | J83: 是
A84: 80 | C84: 肖诗韵 | D84: 20231830012 | E84: 女 | F84: 柜员、客户经理岗 | G84: 90.70 | H84: 60.47 | I84: 4 | J84: 是
A85: 81 | C85: 卢博艺 | D85: 20231812027 | E85: 女 | F85: 柜员、客户经理岗 | G85: 90.60 | H85: 60.40 | I85: 5 | J85: 是
A86: 82 | C86: 刘予渺 | D86: 20231801064 | E86: 女 | F86: 柜员、客户经理岗 | G86: 90.10 | H86: 60.07 | I86: 6 | J86: 是
A87: 83 | C87: 梁远沁 | D87: 20231809054 | E87: 男 | F87: 客户经理岗 | G87: 90.90 | H87: 60.60 | I87: 1 | J87: 是
A88: 84 | C88: 张桐 | D88: 20231816007 | E88: 女 | F88: 客户经理岗 | G88: 88.50 | H88: 59.00 | I88: 2 | J88: 是
A89: 85 | C89: 周新鸿 | D89: 20231828007 | E89: 男 | F89: 客户经理岗 | G89: 87.30 | H89: 58.20 | I89: 3 | J89: 是
A90: 86 | C90: 季朋 | D90: 20231807048 | E90: 男 | F90: 客户经理岗 | G90: 86.00 | H90: 57.33 | I90: 4 | J90: 是
A91: 87 | C91: 赵玮君 | D91: 20231811034 | E91: 男 | F91: 客户经理岗 | G91: 85.10 | H91: 56.73 | I91: 5 | J91: 是
A92: 88 | C92: 何滢 | D92: 20231827030 | E92: 女 | F92: 客户经理岗 | G92: 83.30 | H92: 55.53 | I92: 6 | J92: 是
A93: 89 | B93: 桐梓农商银行 | C93: 李倩 | D93: 20231832066 | E93: 女 | F93: 综合柜员岗01 | G93: 87.70 | H93: 58.47 | I93: 1 | J93: 是 | K93: 遵义市桐梓县河滨南路农村商业银行四楼人力资源部 | L93: 张倩倩 | M93: 15885683925
A94: 90 | C94: 张小丹 | D94: 20231809045 | E94: 女 | F94: 综合柜员岗01 | G94: 87.60 | H94: 58.40 | I94: 2 | J94: 是
A95: 91 | C95: 成茂林 | D95: 20231817018 | E95: 男 | F95: 综合柜员岗01 | G95: 84.00 | H95: 56.00 | I95: 3 | J95: 是
A96: 92 | C96: 李馨岚 | D96: 20231309033 | E96: 女 | F96: 综合柜员岗02 | G96: 95.30 | H96: 63.53 | I96: 1 | J96: 是
A97: 93 | C97: 高陈轩 | D97: 20231306007 | E97: 女 | F97: 综合柜员岗02 | G97: 93.40 | H97: 62.27 | I97: 2 | J97: 是
A98: 94 | C98: 何佳 | D98: 20231309070 | E98: 女 | F98: 综合柜员岗02 | G98: 87.10 | H98: 58.07 | I98: 3 | J98: 是
A99: 95 | C99: 孙雅琴 | D99: 20231309071 | E99: 女 | F99: 综合柜员岗02 | G99: 84.30 | H99: 56.20 | I99: 4 | J99: 是
A100: 96 | C100: 张全旭 | D100: 20231308047 | E100: 男 | F100: 综合柜员岗02 | G100: 83.40 | H100: 55.60 | I100: 5 | J100: 是
A101: 97 | C101: 袁莉 | D101: 20231304019 | E101: 女 | F101: 综合柜员岗02 | G101: 82.10 | H101: 54.73 | I101: 6 | J101: 是
A102: 98 | B102: 湄潭农商银行 | C102: 熊林峰 | D102: 20231504071 | E102: 男 | F102: 柜员、客户经理01 | G102: 91.90 | H102: 61.27 | I102: 1 | J102: 是 | K102: 贵州省遵义市湄潭县天文大道湄潭农商银行七楼会议室 | L102: 石青 | M102: 18685213610
A103: 99 | C103: 谢采倩 | D103: 20231509040 | E103: 女 | F103: 柜员、客户经理01 | G103: 84.00 | H103: 56.00 | I103: 2 | J103: 是
A104: 100 | C104: 季棚鹏 | D104: 20231503059 | E104: 男 | F104: 柜员、客户经理01 | G104: 81.60 | H104: 54.40 | I104: 3 | J104: 是
A105: 101 | C105: 覃槐松 | D105: 20231806003 | E105: 男 | F105: 柜员、客户经理02 | G105: 96.90 | H105: 64.60 | I105: 1 | J105: 是
A106: 102 | C106: 余壵 | D106: 20231829009 | E106: 男 | F106: 柜员、客户经理02 | G106: 95.90 | H106: 63.93 | I106: 2 | J106: 是
A107: 103 | C107: 徐雯钦 | D107: 20231816013 | E107: 女 | F107: 柜员、客户经理02 | G107: 91.40 | H107: 60.93 | I107: 3 | J107: 是
A108: 104 | C108: 罗磊 | D108: 20231818024 | E108: 男 | F108: 柜员、客户经理02 | G108: 90.10 | H108: 60.07 | I108: 4 | J108: 是
A109: 105 | C109: 钟飞 | D109: 20231804044 | E109: 男 | F109: 柜员、客户经理02 | G109: 88.60 | H109: 59.07 | I109: 5 | J109: 是
A110: 106 | C110: 李鑫 | D110: 20231831020 | E110: 女 | F110: 柜员、客户经理02 | G110: 86.50 | H110: 57.67 | I110: 6 | J110: 是
A111: 107 | B111: 凤冈农商银行 | C111: 安莹 | D111: 20231503024 | E111: 女 | F111: 柜员、客户经理01 | G111: 83.20 | H111: 55.47 | I111: 1 | J111: 是 | K111: 贵州省遵义市凤冈县龙泉镇龙凤大道西侧嘉和茗城国际一号楼凤冈农商银行13楼党群部 | L111: 何中霞 | M111: 18183474267
A112: 108 | C112: 黄逸 | D112: 20231506003 | E112: 女 | F112: 柜员、客户经理01 | G112: 81.90 | H112: 54.60 | I112: 2 | J112: 是
A113: 109 | C113: 朱怡杭 | D113: 20231503004 | E113: 男 | F113: 柜员、客户经理01 | G113: 80.80 | H113: 53.87 | I113: 3 | J113: 是
A114: 110 | C114: 文豪 | D114: 20231506074 | E114: 男 | F114: 柜员、客户经理02 | G114: 88.60 | H114: 59.07 | I114: 1 | J114: 是
A115: 111 | C115: 吴林玲 | D115: 20231507050 | E115: 女 | F115: 柜员、客户经理02 | G115: 86.70 | H115: 57.80 | I115: 2 | J115: 是
A116: 112 | C116: 陈曦 | D116: 20231504017 | E116: 女 | F116: 柜员、客户经理02 | G116: 85.10 | H116: 56.73 | I116: 3 | J116: 是
A117: 113 | C117: 杨澜 | D117: 20231504031 | E117: 女 | F117: 柜员、客户经理02 | G117: 84.90 | H117: 56.60 | I117: 4 | J117: 是
A118: 114 | C118: 毛李根 | D118: 20231509036 | E118: 男 | F118: 柜员、客户经理02 | G118: 84.50 | H118: 56.33 | I118: 5 | J118: 是
A119: 115 | C119: 何丽娜 | D119: 20231502003 | E119: 女 | F119: 柜员、客户经理02 | G119: 84.40 | H119: 56.27 | I119: 6 | J119: 是
A120: 116 | B120: 茅台农商银行 | C120: 申晓昕 | D120: 20231211087 | E120: 女 | F120: 柜员、客户经理 | G120: 93.70 | H120: 62.47 | I120: 1 | J120: 是 | K120: 贵州省仁怀市国酒大道三转盘茅台农商银行609室 | L120: 陈曼莉 | M120: 0851-22231141
A121: 117 | C121: 杨斯滟 | D121: 20231210005 | E121: 女 | F121: 柜员、客户经理 | G121: 90.60 | H121: 60.40 | I121: 2 | J121: 是
A122: 118 | C122: 陈小芳 | D122: 20231202033 | E122: 女 | F122: 柜员、客户经理 | G122: 90.20 | H122: 60.13 | I122: 3 | J122: 是
A123: 119 | C123: 陈志 | D123: 20231207077 | E123: 男 | F123: 柜员、客户经理 | G123: 86.30 | H123: 57.53 | I123: 4 | J123: 是
A124: 120 | C124: 刘懿霆 | D124: 20231209003 | E124: 男 | F124: 柜员、客户经理 | G124: 86.00 | H124: 57.33 | I124: 5 | J124: 是
A125: 121 | C125: 宋永帅 | D125: 20231201046 | E125: 男 | F125: 柜员、客户经理 | G125: 84.90 | H125: 56.60 | I125: 6 | J125: 是
A126: 122 | C126: 樊鑫鑫 | D126: 20231211015 | E126: 女 | F126: 柜员、客户经理 | G126: 84.80 | H126: 56.53 | I126: 7 | J126: 是
A127: 123 | C127: 池继焰 | D127: 20231201018 | E127: 男 | F127: 柜员、客户经理 | G127: 84.60 | H127: 56.40 | I127: 8 | J127: 是
A128: 124 | C128: 赵乃仪 | D128: 20231207068 | E128: 男 | F128: 柜员、客户经理 | G128: 84.40 | H128: 56.27 | I128: 9 | J128: 是
A129: 125 | C129: 朱家懋 | D129: 20231201055 | E129: 男 | F129: 信息科技岗 | G129: 94.20 | H129: 62.80 | I129: 1 | J129: 是
A130: 126 | C130: 张贵勇 | D130: 20231211047 | E130: 男 | F130: 信息科技岗 | G130: 93.10 | H130: 62.07 | I130: 2 | J130: 是
A131: 127 | C131: 卢小花 | D131: 20231206033 | E131: 女 | F131: 信息科技岗 | G131: 91.70 | H131: 61.13 | I131: 3 | J131: 是
A132: 128 | C132: 郭家禹 | D132: 20231201066 | E132: 女 | F132: 信息科技岗 | G132: 88.20 | H132: 58.80 | I132: 4 | J132: 是
A133: 129 | C133: 肖傈津 | D133: 20231210017 | E133: 男 | F133: 信息科技岗 | G133: 87.60 | H133: 58.40 | I133: 5 | J133: 是
A134: 130 | C134: 费远航 | D134: 20231202078 | E134: 男 | F134: 信息科技岗 | G134: 87.10 | H134: =ROUND(G134*100/150,2) -> 58.07 | I134: 6 | J134: 是
A135: 131 | C135: 王曾港 | D135: 20231209009 | E135: 男 | F135: 信息科技岗 | G135: 84.40 | H135: 56.27 | I135: 7 | J135: 是
A136: 132 | C136: 万周宇 | D136: 20231210022 | E136: 男 | F136: 信息科技岗 | G136: 84.20 | H136: 56.13 | I136: 8 | J136: 是
A137: 133 | C137: 刘洋 | D137: 20231202070 | E137: 男 | F137: 信息科技岗 | G137: 83.10 | H137: 55.40 | I137: 9 | J137: 是
A138: 134 | B138: 赤水农信联社 | C138: 黄鑫 | D138: 20231830027 | E138: 男 | F138: 柜员、客户经理01 | G138: 87.10 | H138: 58.07 | I138: 1 | J138: 是 | K138: 赤水市人民北路口信用社8楼人力资源部 | L138: 何京芳、何燕 | M138: 0851-22822541
A139: 135 | C139: 何佳静 | D139: 20231811021 | E139: 女 | F139: 柜员、客户经理01 | G139: 85.90 | H139: 57.27 | I139: 2 | J139: 是
A140: 136 | C140: 官雨焰 | D140: 20231807052 | E140: 女 | F140: 柜员、客户经理01 | G140: 83.90 | H140: 55.93 | I140: 3 | J140: 是
A141: 137 | C141: 夏子 | D141: 20231805007 | E141: 男 | F141: 柜员、客户经理01 | G141: 80.70 | H141: 53.80 | I141: 4 | J141: 是
A142: 138 | C142: 余冷顺 | D142: 20231811071 | E142: 男 | F142: 柜员、客户经理01 | G142: 80.50 | H142: 53.67 | I142: 5 | J142: 是
A143: 139 | C143: 詹霜 | D143: 20231825027 | E143: 女 | F143: 柜员、客户经理01 | G143: 80.10 | H143: 53.40 | I143: 6 | J143: 是
A144: 140 | C144: 李崟滢 | D144: 20231823024 | E144: 女 | F144: 柜员、客户经理02 | G144: 98.90 | H144: 65.93 | I144: 1 | J144: 是
A145: 141 | C145: 马倩 | D145: 20231828010 | E145: 女 | F145: 柜员、客户经理02 | G145: 85.00 | H145: 56.67 | I145: 2 | J145: 是
A146: 142 | C146: 张纯 | D146: 20231804038 | E146: 男 | F146: 柜员、客户经理02 | G146: 83.60 | H146: 55.73 | I146: 3 | J146: 是
A147: 143 | B147: 绥阳农信联社 | C147: 余豪 | D147: 20231623012 | E147: 男 | F147: 柜员、客户经理 | G147: 88.70 | H147: 59.13 | I147: 1 | J147: 是 | K147: 绥阳县农村信用合作联社（绥阳县洋川镇冉琎路与幸福大道交叉路口）8楼人力资源部808室 | L147: 杨成平 | M147: 18985619688
A148: 144 | C148: 冯钰琦 | D148: 20231624024 | E148: 男 | F148: 柜员、客户经理 | G148: 88.20 | H148: 58.80 | I148: 2 | J148: 是
A149: 145 | C149: 李乾臣 | D149: 20231609013 | E149: 男 | F149: 柜员、客户经理 | G149: 87.60 | H149: 58.40 | I149: 3 | J149: 是
A150: 146 | C150: 李欣欣 | D150: 20231610023 | E150: 女 | F150: 柜员、客户经理 | G150: 87.60 | H150: 58.40 | I150: 3 | J150: 是
A151: 147 | C151: 叶凡 | D151: 20231620032 | E151: 男 | F151: 柜员、客户经理 | G151: 87.60 | H151: 58.40 | I151: 3 | J151: 是
A152: 148 | C152: 罗祥健 | D152: 20231606022 | E152: 男 | F152: 柜员、客户经理 | G152: 86.10 | H152: 57.40 | I152: 6 | J152: 是
A153: 149 | B153: 正安农信联社 | C153: 刘宽 | D153: 20231901057 | E153: 男 | F153: 柜员、客户经理 | G153: 85.20 | H153: 56.80 | I153: 1 | J153: 是 | K153: 贵州省正安县桐乡路45号（西门信合大厦）7楼党委组织部 | L153: 徐丹 | M153: 0851-26421999
A154: 150 | C154: 王杰 | D154: 20231902063 | E154: 男 | F154: 柜员、客户经理 | G154: 73.60 | H154: 49.07 | I154: 2 | J154: 是
A155: 151 | C155: 王琴 | D155: 20231901011 | E155: 女 | F155: 柜员、客户经理 | G155: 65.30 | H155: 43.53 | I155: 3 | J155: 是
A156: 152 | C156: 陈浪 | D156: 20231901056 | E156: 男 | F156: 柜员、客户经理 | G156: 59.50 | H156: 39.67 | I156: 4 | J156: 是
A157: 153 | C157: 苟洪山 | D157: 20231905034 | E157: 男 | F157: 柜员、客户经理 | G157: 49.70 | H157: 33.13 | I157: 5 | J157: 是
A158: 154 | B158: 盘县农信联社 | C158: 刘远航 | D158: 20232501078 | E158: 女 | F158: 柜员、客户经理01 | G158: 87.00 | H158: 58.00 | I158: 1 | J158: 是 | K158: 贵州省盘州市亦资街道胜境大道与竹海西路交叉处轩华大厦3楼党委办公室 | L158: 刘丽 | M158: 13885834549
A159: 155 | C159: 罗豪 | D159: 20232507020 | E159: 男 | F159: 柜员、客户经理01 | G159: 85.40 | H159: 56.93 | I159: 2 | J159: 是
A160: 156 | C160: 范朝旺 | D160: 20232503022 | E160: 男 | F160: 柜员、客户经理01 | G160: 81.50 | H160: 54.33 | I160: 3 | J160: 是
A161: 157 | C161: 张权 | D161: 20232507001 | E161: 男 | F161: 柜员、客户经理01 | G161: 80.40 | H161: 53.60 | I161: 4 | J161: 是
A162: 158 | C162: 黄朴连 | D162: 20232508046 | E162: 女 | F162: 柜员、客户经理01 | G162: 77.30 | H162: 51.53 | I162: 5 | J162: 是
A163: 159 | C163: 李桂艳 | D163: 20232501067 | E163: 女 | F163: 柜员、客户经理01 | G163: 76.60 | H163: 51.07 | I163: 6 | J163: 是
A164: 160 | C164: 李本涛 | D164: 20232503067 | E164: 男 | F164: 柜员、客户经理01 | G164: 75.80 | H164: 50.53 | I164: 7 | J164: 是
A165: 161 | C165: 刘文来 | D165: 20232501002 | E165: 男 | F165: 柜员、客户经理01 | G165: 75.30 | H165: 50.20 | I165: 8 | J165: 是
A166: 162 | C166: 李思雄 | D166: 20232507035 | E166: 男 | F166: 柜员、客户经理01 | G166: 74.30 | H166: 49.53 | I166: 9 | J166: 是
A167: 163 | C167: 梅永港 | D167: 20232501066 | E167: 男 | F167: 柜员、客户经理02 | G167: 87.50 | H167: 58.33 | I167: 1 | J167: 是
A168: 164 | C168: 黄陌辰 | D168: 20232505012 | E168: 男 | F168: 柜员、客户经理02 | G168: 80.20 | H168: 53.47 | I168: 2 | J168: 是
A169: 165 | C169: 王礼贵 | D169: 20232507002 | E169: 男 | F169: 柜员、客户经理02 | G169: 77.20 | H169: 51.47 | I169: 3 | J169: 是
A170: 166 | C170: 谭舒豪 | D170: 20232502050 | E170: 男 | F170: 柜员、客户经理02 | G170: 77.10 | H170: 51.40 | I170: 4 | J170: 是
A171: 167 | C171: 左琦 | D171: 20232509022 | E171: 女 | F171: 柜员、客户经理02 | G171: 76.50 | H171: 51.00 | I171: 5 | J171: 是
A172: 168 | C172: 辛鑫 | D172: 20232504032 | E172: 男 | F172: 柜员、客户经理02 | G172: 76.30 | H172: 50.87 | I172: 6 | J172: 是
A173: 169 | C173: 杨海 | D173: 20232506070 | E173: 男 | F173: 柜员、客户经理02 | G173: 75.70 | H173: 50.47 | I173: 7 | J173: 是
A174: 170 | C174: 涂朝蝶 | D174: 20232505023 | E174: 女 | F174: 柜员、客户经理02 | G174: 75.60 | H174: 50.40 | I174: 8 | J174: 是
A175: 171 | C175: 李丽 | D175: 20232503051 | E175: 女 | F175: 柜员、客户经理02 | G175: 75.60 | H175: 50.40 | I175: 8 | J175: 是
A176: 172 | B176: 普定农商银行 | C176: 陈文创 | D176: 20231404009 | E176: 男 | F176: 柜员、客户经理01 | G176: 80.40 | H176: 53.60 | I176: 1 | J176: 是 | K176: 贵州省普定县中兴大道新政府大楼旁普定农商银行7楼党委办公室 | L176: 刘懿 | M176: 18586690082
A177: 173 | C177: 张薇 | D177: 20231406059 | E177: 女 | F177: 柜员、客户经理01 | G177: 79.70 | H177: 53.13 | I177: 2 | J177: 是
A178: 174 | C178: 陈俊 | D178: 20231408014 | E178: 女 | F178: 柜员、客户经理01 | G178: 79.30 | H178: 52.87 | I178: 3 | J178: 是
A179: 175 | C179: 丰艳 | D179: 20231401032 | E179: 女 | F179: 柜员、客户经理02 | G179: 93.50 | H179: 62.33 | I179: 1 | J179: 是
A180: 176 | C180: 李霖玲 | D180: 20231405015 | E180: 女 | F180: 柜员、客户经理02 | G180: 86.10 | H180: 57.40 | I180: 2 | J180: 是
A181: 177 | C181: 吴水晶 | D181: 20231406018 | E181: 女 | F181: 柜员、客户经理02 | G181: 84.90 | H181: 56.60 | I181: 3 | J181: 是
A182: 178 | C182: 罗双飞 | D182: 20231402055 | E182: 男 | F182: 柜员、客户经理02 | G182: 83.80 | H182: 55.87 | I182: 4 | J182: 是
A183: 179 | C183: 苏斌 | D183: 20231409039 | E183: 男 | F183: 柜员、客户经理02 | G183: 83.40 | H183: 55.60 | I183: 5 | J183: 是
A184: 180 | C184: 韦安斌 | D184: 20231403046 | E184: 男 | F184: 柜员、客户经理02 | G184: 82.70 | H184: 55.13 | I184: 6 | J184: 是
A185: 181 | B185: 紫云农商银行 | C185: 肖阳 | D185: 20231209059 | E185: 女 | F185: 柜员、客户经理01 | G185: 85.90 | H185: 57.27 | I185: 1 | J185: 是 | K185: 贵州省安顺市紫云县格凸大道北段240号（紫云农商银行新大楼10楼党委办公室<人力资源部）>） | L185: 冯立英 | M185: 15685356216
A186: 182 | C186: 顾颖 | D186: 20231211025 | E186: 女 | F186: 柜员、客户经理01 | G186: 82.10 | H186: 54.73 | I186: 2 | J186: 是
A187: 183 | C187: 杨严婷 | D187: 20231209071 | E187: 女 | F187: 柜员、客户经理01 | G187: 80.10 | H187: 53.40 | I187: 3 | J187: 是
A188: 184 | C188: 官甲训 | D188: 20231201040 | E188: 男 | F188: 柜员、客户经理01 | G188: 79.80 | H188: 53.20 | I188: 4 | J188: 是
A189: 185 | C189: 马艺嘉 | D189: 20231205065 | E189: 女 | F189: 柜员、客户经理01 | G189: 79.10 | H189: 52.73 | I189: 5 | J189: 是
A190: 186 | C190: 杨书林 | D190: 20231208008 | E190: 男 | F190: 柜员、客户经理01 | G190: 78.70 | H190: 52.47 | I190: 6 | J190: 是
A191: 187 | B191: 大方农商银行 | C191: 吴素悦 | D191: 20232706019 | E191: 女 | F191: 柜员、客户经理01 | G191: 88.50 | H191: 59.00 | I191: 1 | J191: 是 | K191: 贵州省毕节市大方县顺德街道办事处九驿大道澜湾国际二区大方农商银行15楼党群工作部（人力资源办公室） | L191: 陈霞 | M191: 13885732004
A192: 188 | C192: 杨博兰 | D192: 20232705014 | E192: 男 | F192: 柜员、客户经理01 | G192: 85.40 | H192: 56.93 | I192: 2 | J192: 是
A193: 189 | C193: 郭莹 | D193: 20232704035 | E193: 女 | F193: 柜员、客户经理01 | G193: 80.30 | H193: 53.53 | I193: 3 | J193: 是
A194: 190 | C194: 李天峰 | D194: 20232703032 | E194: 男 | F194: 柜员、客户经理01 | G194: 79.30 | H194: 52.87 | I194: 4 | J194: 是
A195: 191 | C195: 曾丽雯 | D195: 20232705035 | E195: 女 | F195: 柜员、客户经理01 | G195: 78.20 | H195: 52.13 | I195: 5 | J195: 是
A196: 192 | C196: 申开杰 | D196: 20232707014 | E196: 男 | F196: 柜员、客户经理01 | G196: 77.40 | H196: 51.60 | I196: 6 | J196: 是
A197: 193 | C197: 陈美松 | D197: 20232621005 | E197: 女 | F197: 柜员、客户经理02 | G197: 87.20 | H197: 58.13 | I197: 1 | J197: 是
A198: 194 | C198: 丁思鸣 | D198: 20232601052 | E198: 女 | F198: 柜员、客户经理02 | G198: 86.30 | H198: =ROUND(G198*100/150,2) -> 57.53 | I198: 2 | J198: 是
A199: 195 | C199: 沈嶅 | D199: 20232613042 | E199: 男 | F199: 柜员、客户经理02 | G199: 85.90 | H199: 57.27 | I199: 3 | J199: 是
A200: 196 | C200: 杨友沿 | D200: 20232710023 | E200: 男 | F200: 柜员、客户经理02 | G200: 84.40 | H200: 56.27 | I200: 4 | J200: 是
A201: 197 | C201: 范文笔 | D201: 20232723020 | E201: 男 | F201: 柜员、客户经理02 | G201: 83.60 | H201: 55.73 | I201: 5 | J201: 是
... 378 more rows

Sheet Sheet2

Sheet Sheet3
